{"text_format":"1","workbook":"xlsx","n_sheets":4,"sheets":["data","text","New CP42","Re-enrolled CP42"],"not_rendered":{"charts":0,"images":15,"macros":1,"external_links":1,"defined_names":4,"comments":0,"pivot_tables":0},"unopened":[],"bounds":{"document_bytes":16777216,"sheet_cells":100000,"rows_first":2000,"rows_last":500,"rows_between":2000,"halvings":0,"cell_chars":16384,"cell_head_chars":4096},"cells_cut":0,"cells_raw":0,"read":"whole","date_system":"1900"}

{"sheet":"data","index":0,"n_rows":125,"n_cols":6,"rows_kept":125,"cut":false,"hidden":true,"merged":[[75,5,75,16],[74,5,74,16]]}
["Participant",null,"Project or Contract"]
["Location",null,"County"]
["Farm Number",null,"Tract Number"]
[null,null,null,null,1]
[null,"Select ",null,null,2]
["x","CP 1",null,null,3]
[null,"CP 2",null,null,4]
[null,"CP 4D",null,null,5]
[null,"CP 8A",null,null,6]
[null,"CP 9",null,null,7]
[null,"CP 15A",null,null,8]
[null,"CP 21",null,null,9]
[null,"CP 22",null,null,10]
[null,"CP 23"]
[null,"CP 23A"]
[null,"CP 29"]
[null,"CP 30"]
[null,"CP 33"]
[null,"CP 42"]
[]
[null,"Over-seeding Planned"]
["Mowing Pattern (Check 1) "]
[null,"Entire Acreage"]
[null,"Alternating row"]
[null,"Alternating block",null,null,"10 yrs to 10 yrs, 11 months           "]
[null,"Tree / Shrub Area  ",null,null,"11 yrs to 11 yrs, 11 months           "]
[null,"in year 4 or 5, but before end of year 6           ",null,null,"12 yrs to 12 yrs, 11 months           "]
[null,"in year 4 or 5, but before end of year 6",null,null,"13 yrs to 13 yrs, 11 months           "]
[null,"in year 4 or 5, but before end of year 6",null,null,"14 yrs to 14 yrs, 11 months           "]
[null,"in year 4 or 5, but before end of year 9           ",null,null,"15 years                                             "]
[null,"in year 4 or 5, but before end of year 9           ",null,null,"Re-enrollment contract"]
[null,"in year 4 or 5, but before end of year 9           "]
[{"$f":"data!E53","v":0},"Not Applicable"]
[null,"before end of year 8"]
[null,"before end of year 9"]
[null,"before end of year 10"]
[null,"before end of year 11"]
[null,"before end of year 12"]
[null,"before end of year 13"]
[null,"at re-enrollment"]
[]
[null,{"$f":"indirect","v":{"$error":"#NAME?"}}]
[]
[]
[null,null,null,"Mowing Method","MowingImageLookup"]
[null,null,1,"Entire Acreage"]
[null,null,2,"Alternating row"]
[null,null,3,"Alternating block"]
[null,null,4,"Tree / Shrub Area  "]
[]
[]
[]
[]
[]
[]
[]
[null,null,"Select Purpose",null,null,"Select Mowing Height"]
["Select County",null,"Reduce the amount of sediment and nutrients leaving the field.",null,null,"Mow cool-season grasses no lower than 6 inches."]
["Adams",null,"Improve water quality by reducing runoff of sediment and nutrients.",null,null,"Mow warm-season grasses no lower than 8 inches."]
["Allegheny",null,"Provide long-term grassland habitat for wildlife."]
["Armstrong"]
["Beaver"]
["Bedford"]
["Berks"]
["Blair",null,"Select a MCM"]
["Bradford",null,"Inter-seeding / Overseeding"]
["Bucks",null,"Prescribed Burning"]
["Butler",null,"Prescribed Mowing"]
["Cambria"]
["Cameron"]
["Carbon"]
["Centre",null,"Select a site preparation method",null,null,"   "]
["Chester",null,"Apply appropriate herbicide(s) to CP42 acres, to remove existing vegetation.  ",null,null,"Use non-selective herbicides (like glyphosate) when removing all existing vegetation; use selective herbicides (like 2,4-D formulations) when removing broad-leaved vegetation but retaining existing grasses.  Extremely vigorous plants may require multiple treatments: apply herbicide(s) in early fall of the year prior to planting, followed by another spring application of herbicides at least two weeks prior to planting.  Always follow herbicide label instructions for rate, timing, and methods of herbicide application(s).  Take special care to avoid herbicide carryover that may negatively affect the CRP planting."]
["Clarion",null,"Cultivate the CP42 acres, to remove existing vegetation and/or prepare the seedbed.  ",null,null,"Cultivation offers an alternative to herbicides, but requires careful consideration, as it is often less effective than herbicides for killing unwanted vegetation, may actually stir up weed seeds in the soil, and may increase the risk of runoff or erosion from sloped fields.  NRCS strongly recommends cover crops or nurse crops for erosion control and weed suppression on cultivated sites.  Plant cover crops of wheat, barley, or oats on the CP42 acres in the early fall of the year prior to planting.  Plant nurse crops of wheat, barley, or oats (oats are preferred, because they offer less competition to the new grasses) with the pollinator plant seeds in the spring to minimize erosion and suppress weeds while minimizing competition.  Seed nurse crops at 1 bushel per acre."]
["Clearfield",null,"No site preparation needed.  ",null,null,"This option only applies to fields with little or no weed pressure or competing vegetation AND little or no seed bed.  Be aware that weed control is easiest and most effective prior to planting, rather than after.  No cost-sharing is available from USDA for this activity. "]
["Clinton"]
["Columbia"]
["Crawford"]
["Cumberland",null,"Select a seeding method",null,null,"         "]
["Dauphin",null,"No-Till drill.  ",null,null,"After completion of site preparations, plant the selected seed mixture with a no-till drill, taking care to place seed at the proper depth in the soil.  Seeding pattern should be perpendicular to the direction of surface water flow whenever possible.  "]
["Delaware",null,"Conventional drill.  ",null,null,"After completion of site preparations, plant the selected seed mixture with a conventional drill, taking care to place seed at the proper depth in the soil.  Cultipack/firm seed bed after seeding.  Seed and cultipack perpendicular to the direction of surface water flow whenever possible.  "]
["Elk",null,"Broadcasting.  ",null,null,"After completion of site preparations, plant the selected seed mixture by broadcasting seed.  Increase seeding rates by 50% more seed per acre when broadcasting, to compensate for lower germination rates resulting from less seed-to-soil contact.  For example, if a seed mixture’s no-till seeding rate is 6 lbs/ac, then the same seed mixture’s broadcast seeding rate would be 9 lbs/ac, to achieve similar germination rates.  Calibrate the broadcaster prior to spreading seed; use a free-flowing “carrier” material with the seed if needed.  For best results, broadcast half the total seed in one pattern (i.e. East – West), then broadcast the remaining seed perpendicular to the previous pattern (i.e. North – South).  Cultipack/firm seed bed after broadcasting; cultipacking pattern should be perpendicular to the direction of surface water flow whenever possible.     "]
["Erie"]
["Fayette"]
["Forest"]
["Franklin"]
["Fulton"]
["Greene"]
["Huntingdon"]
["Indiana"]
["Jefferson"]
["Juniata"]
["Lackawanna"]
["Lancaster"]
["Lawrence"]
["Lebanon"]
["Lehigh"]
["Luzerne"]
["Lycoming"]
["McKean"]
["Mercer"]
["Mifflin"]
["Monroe"]
["Montgomery"]
["Montour"]
["Northampton"]
["Northumberland"]
["Perry"]
["Philadelphia"]
["Pike"]
["Potter"]
["Schuylkill"]
["Snyder"]
["Somerset"]
["Sullivan"]
["Susquehanna"]
["Tioga"]
["Union"]
["Venango"]
["Warren"]
["Washington"]
["Wayne"]
["Westmoreland"]
["Wyoming"]
["York"]

{"sheet":"text","index":1,"n_rows":3,"n_cols":15,"rows_kept":3,"cut":false,"hidden":true,"merged":[[0,0,0,13]]}
["CP"]
[1,2,"4D","8A",9,"15A",21,22,23,"23A",29,30,33,42,"comment"]
[null,null,null,"x",null,"x","x",null,null,null,null,null,null,null,"May receive a one-time Prescribed Mowing of their entire acreage.  "]

{"sheet":"New CP42","index":2,"n_rows":125,"n_cols":15,"rows_kept":125,"cut":false,"hidden":false,"merged":[[99,2,99,10],[86,3,87,3],[86,10,86,11],[86,12,86,14],[90,12,90,14],[91,12,91,14],[92,12,92,14],[93,12,93,14],[94,12,94,14],[95,12,95,14],[96,6,96,7],[97,6,97,7],[96,12,96,14],[97,12,97,14],[88,12,88,14],[89,12,89,14],[85,2,86,2],[88,6,88,7],[89,6,89,7],[90,6,90,7],[91,6,91,7],[92,6,92,7],[93,6,93,7],[94,6,94,7],[2,2,2,3],[3,2,3,3],[4,2,4,3],[32,2,32,8],[34,2,34,8],[34,12,34,14],[35,2,35,8],[35,12,35,14],[4,11,4,13],[2,11,2,13],[12,2,12,14],[15,2,15,14],[7,2,7,14],[10,2,10,14],[2,4,2,8],[3,4,3,8],[4,4,4,8],[13,2,13,14],[22,2,22,14],[24,2,24,14],[23,2,23,14],[31,2,31,8],[30,2,30,8],[30,12,30,14],[122,2,122,14],[121,2,121,10],[80,2,80,14],[65,2,65,14],[66,2,66,14],[67,2,67,14],[75,2,75,14],[109,4,110,7],[108,2,109,2],[109,13,109,14],[78,2,78,14],[109,9,110,9],[88,4,88,5],[89,4,89,5],[90,4,90,5],[91,4,91,5],[92,4,92,5],[93,4,93,5],[94,4,94,5],[95,4,95,5],[96,4,96,5],[97,4,97,5],[86,6,87,7],[100,2,100,14],[36,12,36,14],[37,12,37,14],[46,12,46,14],[47,12,47,14],[49,12,49,14],[50,12,50,14],[17,2,17,13],[18,2,18,14],[29,12,29,14],[33,12,33,14],[28,2,28,8],[36,2,36,8],[37,2,37,8],[33,2,33,8],[19,3,19,14],[41,12,41,14],[42,2,42,8],[42,12,42,14],[43,2,43,8],[29,2,29,8],[46,2,46,8],[47,2,47,8],[49,2,49,8],[50,2,50,8],[73,5,73,8],[73,9,73,10],[73,11,73,13],[57,2,57,13],[58,2,58,14],[70,2,70,4],[70,5,70,8],[70,9,70,10],[70,11,70,13],[71,2,71,4],[71,5,71,8],[71,9,71,10],[71,11,71,13],[59,3,59,14],[68,2,68,4],[68,5,68,8],[68,9,68,10],[68,11,68,13],[69,2,69,4],[95,6,95,7],[39,2,39,8],[39,12,39,14],[40,2,40,8],[40,12,40,14],[41,2,41,8],[119,4,119,8],[120,4,120,8],[111,4,111,8],[112,4,112,8],[113,4,113,8],[114,4,114,8],[115,4,115,8],[116,4,116,8],[117,4,117,8],[118,4,118,8],[109,3,110,3],[61,2,61,14],[109,10,110,10],[109,11,110,11],[109,12,110,12],[62,2,62,14],[86,8,87,8],[86,9,87,9],[38,2,38,8],[38,12,38,14],[86,4,87,5],[43,12,43,14],[44,2,44,8],[44,12,44,14],[45,2,45,8],[45,12,45,14],[69,5,69,8],[69,9,69,10],[69,11,69,13],[48,2,48,8],[48,12,48,14],[51,2,51,8],[51,12,51,14],[52,2,52,8],[52,12,52,14],[53,2,53,8],[53,12,53,14],[72,2,72,4],[72,5,72,8],[72,9,72,10],[72,11,72,13],[73,2,73,4]]}
[]
[]
[null,null,"Participant:",null,null,null,null,null,null,null,"FSA Contract:  "]
[null,null,"Location:",null,null,null,null,null,null,null,"County:  "]
[null,null,"Farm Number:",null,null,null,null,null,null,null,"Tract Number:  "]
[]
[null,null,"Definition:"]
[null,null,"The establishment and maintenance of permanent vegetative cover consisting of pollinator-friendly plants like native forbs/wildflowers, legumes, native bunch grasses, and/or shrubs.   "]
[]
[null,null,"Purpose:  "]
[null,null,"This practice establishes and maintains vegetative cover of pollinator-friendly plants on eligible cropland to provide foraging and nesting habitat for a diversity of pollinator species."]
[null,null,"Description:"]
[null,null,"Pollinator species like bees and butterflies are decreasing in number and diversity across North America, for a variety of reasons.  The loss of foraging habitat--places where flowering plants that produce nectar and pollen can be found--is partially responsible for these declines.  Establishing areas of flowering plants can greatly help pollinators on a local scale.  Native wildflowers/forbs, clovers, bunch grasses, and/or shrubs provide a good combination of food and cover for pollinators, as well other benefits for wildlife."]
[]
[null,null,"Practice Guidance for New CP42 Acres:  "]
[null,null,"Establish native wildflowers, legumes, native bunch grasses, and/or shrubs in the fields indicated in Table 1 and on the Conservation Plan Map, by following the Site Preparation and Planting Guidance below.  Weed control (mowing or herbicide treatment) during the three-year establishment period of the pollinator habitat may help the cover establish succeessfully.  After the pollinator plants are established, follow the Operation and Maintenance requirements below.  CRP contracts also require periodic management of CP42 acres, which should follow the Mid-Contract Management guidance below."]
[null,null,"Site Preparation for New CP42 Acres"]
[null,null,"Select a site preparation method"]
[null,null,{"$f":"IF(C18=data!C73,data!F73,IF(C18=data!C74,data!F74,IF(C18=data!C75,data!F75,IF(C18=data!C76,data!F76))))","v":false}]
[null,null,"SITE-                   SPECIFIC NOTES","Enter text here"]
[]
[null,null,"Planting Guidance for New CP42 Acres      "]
[null,null,"Each pollinator planting must be ≥ 0.5 acre in size, and contain a minimum of 9 species of pollinator-friendly wildflowers, legumes, and/or shrubs.  At least three plants should bloom in each of the three growing seasons (spring, summer, fall).  Grasses are not required, but if included must be native bunch grasses and must not exceed 25% of the seeds per square foot.  Trees are not an eligible component of CP42 plantings."]
[null,null,"Wildflowers/forbs, legumes, and/or shrubs species should be native; however, beneficial introduced species (e.g., alfalfa and clover) may be included.  Each introduced species must be no more than 10% of the Pure Live Seed (PLS) mixture, and all introduced species combined cannot exceed 20% of the total PLS mixture."]
[null,null,"Use of the pre-existing pollinator seed mixes found in the Conservation Cover (327) for Pollinators Job Sheet is strongly recommended.  Alternative mixes may be used if approved in advance by the NRCS State Biologist."]
[null,null,null,null,null,null,null,null,null,"# plants",null,null,null,"Items in gray for USDA"]
[null,null,null,null,null,null,null,null,null,"or",null,"lbs of ",null,"use only"]
[null,null,"Seed Mix ",null,null,null,null,null,null,"lbs / ac","Acres","PLS",null,"Seed tag verified?"]
[null,null,null,null,null,null,null,null,null,null,null,"needed","Yes ☐","No ☐"]
[null,null,"        Use the \"dry site\" mix given in Conservation Cover (327) for Pollinators Job Sheet",null,null,null,null,null,null,null,null,{"$f":"ROUNDUP((J30*K30),0)","v":0}]
[null,null,"        Use the \"wet site\" mix given in Conservation Cover (327) for Pollinators Job Sheet",null,null,null,null,null,null,null,null,{"$f":"ROUNDUP((J31*K31),0)","v":0}]
[null,null,"OR "]
[null,null,"        Use the following seed/plant mix:",null,null,null,null,null,null,null,null,null,"Yes ☐","No ☐"]
[null,null,"spring-blooming species 1 (required)",null,null,null,null,null,null,null,null,{"$f":"ROUNDUP((J34*K34),0)","v":0}]
[null,null,"spring-blooming species 2 (required)",null,null,null,null,null,null,null,null,{"$f":"ROUNDUP((J35*K35),0)","v":0}]
[null,null,"spring-blooming species 3 (required)",null,null,null,null,null,null,null,null,0]
[null,null,"spring-blooming species 4 (optional)",null,null,null,null,null,null,null,null,{"$f":"ROUNDUP((J37*K37),0)","v":0}]
[null,null,"spring-blooming species 5 (optional)",null,null,null,null,null,null,null,null,0]
[null,null,"spring-blooming shrub species 1 (optional)",null,null,null,null,null,null,null,null,0]
[null,null,"spring-blooming shrub species 2 (optional)",null,null,null,null,null,null,null,null,0]
[null,null,"spring-blooming shrub species 3 (optional)",null,null,null,null,null,null,null,null,0]
[null,null,"summer-blooming species 1 (required)",null,null,null,null,null,null,null,null,0]
[null,null,"summer-blooming species 2 (required)",null,null,null,null,null,null,null,null,{"$f":"ROUNDUP((J43*K43),0)","v":0}]
[null,null,"summer-blooming species 3 (required)",null,null,null,null,null,null,null,null,0]
[null,null,"summer-blooming species 4 (optional)",null,null,null,null,null,null,null,null,{"$f":"ROUNDUP((J45*K45),0)","v":0}]
[null,null,"summer-blooming species 5 (optional)",null,null,null,null,null,null,null,null,{"$f":"ROUNDUP((J46*K46),0)","v":0}]
[null,null,"fall-blooming species 1 (required)",null,null,null,null,null,null,null,null,{"$f":"ROUNDUP((J47*K47),0)","v":0}]
[null,null,"fall-blooming species 2 (required)",null,null,null,null,null,null,null,null,{"$f":"ROUNDUP((J48*K48),0)","v":0}]
[null,null,"fall-blooming species 3 (required)",null,null,null,null,null,null,null,null,0]
[null,null,"fall-blooming species 4 (optional)",null,null,null,null,null,null,null,null,{"$f":"ROUNDUP((J50*K50),0)","v":0}]
[null,null,"fall-blooming species 5 (optional)",null,null,null,null,null,null,null,null,{"$f":"ROUNDUP((J51*K51),0)","v":0}]
[null,null,"native bunch grass species 1 (optional)",null,null,null,null,null,null,null,null,{"$f":"ROUNDUP((J52*K52),0)","v":0}]
[null,null,"native bunch grass species 2 (optional)",null,null,null,null,null,null,null,null,{"$f":"ROUNDUP((J53*K53),0)","v":0}]
[null,null,"native bunch grass species 3 (optional)",null,null,null,null,null,null,null,null,{"$f":"ROUNDUP((J54*K54),0)","v":0}]
[]
[]
[null,null,"Planting Method for New CP42 acres"]
[null,null,"Select a seeding method"]
[null,null,{"$f":"IF(C58=data!C80,data!F80, IF(C58=data!C81,data!F81, IF(C58=data!C82,data!F82)))","v":false}]
[null,null,"SITE-                   SPECIFIC NOTES","Enter text here"]
[null,null,"Establishment of New CP42 Acres"]
[null,null,"Wilflowers and native bunch grasses typically need three years after seeding to fully establish.  During those three years, establishment improves greatly with reduction of competing vegetation and/or weed pressure.  As a result, CRP rules allow mowing and spraying of CP42 acres, at any time during the three years of establishment.  Do not mow CP42 acres lower than 8 inches, and follow all label instructions when applying appropriate herbicides.  Contact NRCS prior to mowing or spraying, for technical assistance and to document the establishment actions taken."]
[null,null,"After the establishment period ends, mowing and spraying must follow the more restrictive timing and guidance given in Operation and Maintenance, below.  Therefore, NRCS recommends using the available mowing and/or spraying to its full advantage in the establishment years, to promote the most vigorous CP42 cover possible.    "]
[]
[null,null,"Operation and Maintenance:   "]
[null,null,"To control unwanted vegetation and to keep the existing conservation cover in compliance with the CRP/CREP contract, perform maintenance (by spot mowing or herbicide treatment) on specific, limited locations where weeds occur.  To avoid permanent damage to CP42 cover, do not mow below 8 inches.  Treatment with appropriate herbicides should always follow label directions for rate, amount, and timing of herbicide application.  "]
[null,null,"Spot mowing and herbicide treatment can only occur on acres with weed pressure, and cannot exceed 1/3 (33%) of any field in a given year.  Both spot mowing and herbicide treatment must occur between August 1 and August 31.  If mowing more than 1/3 of a field or spot mowing or herbicide treatment needed at other times of the year—for example, thistle control in May or early June—is needed, it must be requested from and pre-approved by the FSA County Committee.  "]
[null,null,"Control noxious weeds (see list below) on all CP42 acres over the entire length of the CRP contract.  Mowing alone may not be sufficient to control noxious or woody vegetation; a follow-up herbicide treatment may be necessary.  Any CP42 cover destroyed must be re-established."]
[null,null,"animated oat",null,null,"Eur. wand loosestrife",null,null,null,"mile-a-minute",null,"shattercane"]
[null,null,"broomrape",null,null,"giant hogweed",null,null,null,"multiflora rose",null,"tall waterhemp"]
[null,null,"bull thistle",null,null,"goatsrue",null,null,null,"musk/nodding thistle",null,"wavyleaf basketgrass"]
[null,null,"Canada thistle",null,null,"hydrilla",null,null,null,"Palmer amaranth"]
[null,null,"common waterhemp",null,null,"johnsongrass",null,null,null,"poison hemlock"]
[null,null,"dodder",null,null,"kudzu",null,null,null,"purple loosestrife"]
[]
[null,null,"Haying or grazing of CP42 acres is not allowed for the life of the CRP contract."]
[]
[null,null,"Mid-Contract Management (MCM):   "]
[null,null,"Implement the MCM practices indicated in Table 2 below, to prolong, improve, or diversify the benefits of the CP42 cover.  Specific guidance for each MCM practice chosen can be found on the related Job Sheet(s) included with this CRP plan.  Contact NRCS for a site visit and field evaluation before conducting MCM, to verify that the contracted MCM activity applies to the condition of the site."]
[]
[null,null,"By signing this document, the participant agrees to implement the CP42 conservation practice following the technical recommendations provided by NRCS and approved by FSA.    Any changes to the CP42 practice must receive NRCS and FSA approval prior to implementation."]
[]
[]
[]
[null,null,"Table 1: CP42 Implementation and Schedule"]
[null,null,"Select number of fields",null,null,null,null,null,null,null,"     (items in grey are for USDA reporting only)"]
[null,null,null,"Field","Acres Planned",null,"Year Planned",null,"Acres Applied","Date Applied","Certified by",null,"Comments"]
[null,null,10,null,null,null,null,null,null,null,"NRCS","Part."]
[null,null,null,1]
[{"$f":"IF($C$88<2,\"No\",\"Yes\")","v":"Yes"},null,null,2]
[{"$f":"IF($C$88<3,\"No\",\"Yes\")","v":"Yes"},null,null,3]
[{"$f":"IF($C$88<4,\"No\",\"Yes\")","v":"Yes"},null,null,4]
[{"$f":"IF($C$88<5,\"No\",\"Yes\")","v":"Yes"},null,null,5]
[{"$f":"IF($C$88<6,\"No\",\"Yes\")","v":"Yes"},null,null,6]
[{"$f":"IF($C$88<7,\"No\",\"Yes\")","v":"Yes"},null,null,7]
[{"$f":"IF($C$88<8,\"No\",\"Yes\")","v":"Yes"},null,null,8]
[{"$f":"IF($C$88<9,\"No\",\"Yes\")","v":"Yes"},null,null,9]
[{"$f":"IF($C$88<10,\"No\",\"Yes\")","v":"Yes"},null,null,10]
[{"$f":"IF($C$88<2,\"No\",\"Yes\")","v":"Yes"}]
[null,null,"Certification Statement:"]
[null,null,"I certify that implementation of this conservation practice is complete, meets criteria for the stated purpose(s), and meets the NRCS conservation practice standard and specifications."]
[]
[]
[null,null,"Certified By:"]
[]
[]
[]
[null,null,"Table 2: Mid-Contract Management Activity and Schedule"]
[null,null,"Select number of fields",null,null,null,null,null,null,null,"     (items in grey are for USDA reporting only)"]
[null,null,null,"Field","Mid-Contract Management",null,null,null,null,"Acres Planned","Year Planned","Acres Applied","Year Applied","Certified By:"]
[null,null,10,null,null,null,null,null,null,null,null,null,null,"NRCS / TSP","Participant"]
[null,null,null,1,"Select a MCM"]
[{"$f":"IF($C$111<3,\"No\",\"Yes\")","v":"Yes"},null,null,2,"Select a MCM"]
[{"$f":"IF($C$111<2,\"No\",\"Yes\")","v":"Yes"},null,null,3,"Select a MCM"]
[{"$f":"IF($C$111<4,\"No\",\"Yes\")","v":"Yes"},null,null,4,"Select a MCM"]
[{"$f":"IF($C$111<5,\"No\",\"Yes\")","v":"Yes"},null,null,5,"Select a MCM"]
[{"$f":"IF($C$111<6,\"No\",\"Yes\")","v":"Yes"},null,null,6,"Select a MCM"]
[{"$f":"IF($C$111<7,\"No\",\"Yes\")","v":"Yes"},null,null,7,"Select a MCM"]
[{"$f":"IF($C$111<8,\"No\",\"Yes\")","v":"Yes"},null,null,8,"Select a MCM"]
[{"$f":"IF($C$111<9,\"No\",\"Yes\")","v":"Yes"},null,null,9,"Select a MCM"]
[{"$f":"IF($C$111<10,\"No\",\"Yes\")","v":"Yes"},null,null,10,"Select a MCM"]
[null,null,"Certification Statement:"]
[null,null,"I certify that implementation of this conservation practice is complete, meets criteria for the stated purpose(s), and meets the NRCS conservation practice standard and specifications."]
[]
[null,null,"Certified By:"]

{"sheet":"Re-enrolled CP42","index":3,"n_rows":59,"n_cols":15,"rows_kept":59,"cut":false,"hidden":false,"merged":[[17,3,17,14],[16,2,16,14],[7,2,7,14],[10,2,10,14],[12,2,12,14],[13,2,13,14],[14,2,14,14],[4,2,4,3],[4,4,4,8],[4,11,4,13],[2,2,2,3],[2,4,2,8],[2,11,2,13],[3,2,3,3],[3,4,3,8],[20,2,20,14],[21,2,21,14],[22,2,22,14],[23,2,23,4],[23,5,23,8],[23,9,23,10],[23,11,23,13],[24,2,24,4],[24,5,24,8],[24,9,24,10],[24,11,24,13],[25,2,25,4],[25,5,25,8],[25,9,25,10],[25,11,25,13],[26,2,26,4],[26,5,26,8],[26,9,26,10],[26,11,26,13],[27,2,27,4],[27,5,27,8],[27,9,27,10],[27,11,27,13],[28,2,28,4],[28,5,28,8],[28,9,28,10],[28,11,28,13],[30,2,30,14],[41,11,42,11],[41,12,42,12],[41,13,41,14],[33,2,33,14],[35,2,35,14],[40,2,41,2],[41,3,42,3],[41,4,42,7],[41,9,42,9],[41,10,42,10],[43,4,43,8],[44,4,44,8],[45,4,45,8],[46,4,46,8],[47,4,47,8],[54,2,54,10],[55,2,55,14],[48,4,48,8],[49,4,49,8],[50,4,50,8],[51,4,51,8],[52,4,52,8]]}
[]
[]
[null,null,"Participant:",null,null,null,null,null,null,null,"FSA Contract:  "]
[null,null,"Location:",null,null,null,null,null,null,null,"County:  "]
[null,null,"Farm Number:",null,null,null,null,null,null,null,"Tract Number:  "]
[]
[null,null,"Definition:"]
[null,null,"The establishment and maintenance of permanent vegetative cover consisting of pollinator-friendly plants like native forbs/wildflowers, legumes, native bunch grasses, and/or shrubs.   "]
[]
[null,null,"Purpose:  "]
[null,null,"This practice maintains the existing vegetative cover of pollinator-friendly plants on eligible cropland to provide foraging and nesting habitat for a diversity of pollinator species."]
[null,null,"Description:"]
[null,null,"Pollinator species like bees and butterflies are decreasing in number and diversity across North America, for a variety of reasons.  The loss of foraging habitat--places where flowering plants that produce nectar and pollen can be found--is partially responsible for these declines.  Establishing areas of flowering plants can greatly help pollinators on a local scale.  Native wildflowers/forbs, clovers, bunch grasses, and/or shrubs provide a good combination of food and cover for pollinators, as well other benefits for wildlife."]
[]
[]
[null,null,"Practice Guidance for Re-enrolled CP42 Acres:  "]
[null,null,"Maintain the existing native wildflowers, legumes, native bunch grasses, and/or shrubs in the fields indicated in Table 1 and on the Conservation Plan Map, by following the Site Preparation and Planting Guidance below.  Follow the Operation and Maintenance requirements below.  CRP contracts also require periodic management of CP42 acres, which should follow the Mid-Contract Management guidance below."]
[null,null,"SITE-                   SPECIFIC NOTES","Enter text here"]
[]
[null,null,"Operation and Maintenance:   "]
[null,null,"To control unwanted vegetation and to keep the existing conservation cover in compliance with the CRP/CREP contract, perform maintenance (by spot mowing or herbicide treatment) on specific, limited locations where weeds occur.  To avoid permanent damage to CP42 cover, do not mow below 8 inches.  Treatment with appropriate herbicides should always follow label directions for rate, amount, and timing of herbicide application.  "]
[null,null,"Spot mowing and herbicide treatment can only occur on acres with weed pressure, and cannot exceed 1/3 (33%) of any field in a given year.  Both spot mowing and herbicide treatment must occur between August 1 and August 31.  If mowing more than 1/3 of a field or spot mowing or herbicide treatment needed at other times of the year—for example, thistle control in May or early June—is needed, it must be requested from and pre-approved by the FSA County Committee.  "]
[null,null,"Control noxious weeds (see list below) on all CP42 acres over the entire length of the CRP contract.  Mowing alone may not be sufficient to control noxious or woody vegetation; a follow-up herbicide treatment may be necessary.  Any CP42 cover destroyed must be re-established."]
[null,null,"animated oat",null,null,"Eur. wand loosestrife",null,null,null,"mile-a-minute",null,"shattercane"]
[null,null,"broomrape",null,null,"giant hogweed",null,null,null,"multiflora rose",null,"tall waterhemp"]
[null,null,"bull thistle",null,null,"goatsrue",null,null,null,"musk/nodding thistle",null,"wavyleaf basketgrass"]
[null,null,"Canada thistle",null,null,"hydrilla",null,null,null,"Palmer amaranth"]
[null,null,"common waterhemp",null,null,"johnsongrass",null,null,null,"poison hemlock"]
[null,null,"dodder",null,null,"kudzu",null,null,null,"purple loosestrife"]
[]
[null,null,"Haying or grazing of CP42 acres is not allowed for the life of the CRP contract."]
[]
[null,null,"Mid-Contract Management (MCM):   "]
[null,null,"Implement the MCM practices indicated in Table 1 below, to prolong, improve, or diversify the benefits of the CP42 cover.  Specific guidance for each MCM practice chosen can be found on the related Job Sheet(s) included with this CRP plan.  Contact NRCS for a site visit and field evaluation before conducting MCM, to verify that the contracted MCM activity applies to the condition of the site."]
[]
[null,null,"By signing this document, the participant agrees to implement the CP42 conservation practice following the technical recommendations provided by NRCS and approved by FSA.  Any changes to the CP42 practice must receive NRCS and FSA approval prior to implementation."]
[]
[]
[]
[null,null,"Table 1: Mid-Contract Management Activity and Schedule"]
[null,null,"Select number of fields",null,null,null,null,null,null,null,"     (items in grey are for USDA reporting only)"]
[null,null,null,"Field","Mid-Contract Management",null,null,null,null,"Acres Planned","Year Planned","Acres Applied","Year Applied","Certified By:"]
[null,null,10,null,null,null,null,null,null,null,null,null,null,"NRCS / TSP","Participant"]
[null,null,null,1,"Select a MCM"]
[{"$f":"IF($C$43<2,\"No\",\"Yes\")","v":"Yes"},null,null,2,"Select a MCM"]
[{"$f":"IF($C$43<3,\"No\",\"Yes\")","v":"Yes"},null,null,3,"Select a MCM"]
[{"$f":"IF($C$43<4,\"No\",\"Yes\")","v":"Yes"},null,null,4,"Select a MCM"]
[{"$f":"IF($C$43<5,\"No\",\"Yes\")","v":"Yes"},null,null,5,"Select a MCM"]
[{"$f":"IF($C$43<6,\"No\",\"Yes\")","v":"Yes"},null,null,6,"Select a MCM"]
[{"$f":"IF($C$43<7,\"No\",\"Yes\")","v":"Yes"},null,null,7,"Select a MCM"]
[{"$f":"IF($C$43<8,\"No\",\"Yes\")","v":"Yes"},null,null,8,"Select a MCM"]
[{"$f":"IF($C$43<9,\"No\",\"Yes\")","v":"Yes"},null,null,9,"Select a MCM"]
[{"$f":"IF($C$43<10,\"No\",\"Yes\")","v":"Yes"},null,null,10,"Select a MCM"]
[]
[null,null,"Certification Statement:"]
[null,null,"I certify that implementation of this conservation practice is complete, meets criteria for the stated purpose(s), and meets the NRCS conservation practice standard and specifications."]
[]
[]
[null,null,"Certified By:"]